bitfinex/quotes_BTCUSD_20250615
["timestamp","ask_amount","ask_price","bid_price","bid_amount"]
[1749988487409,0.19152806,105170.0,105160.0,0.0582685]
[1749988487622,0.19152806,105170.0,105160.0,0.07611765]
[1749988487878,0.19152806,105170.0,105160.0,0.0582685]
[1749988488090,0.19152806,105170.0,105160.0,0.07611765]
[1749988488723,0.19152806,105170.0,105160.0,0.09318221]
[1749988488970,0.19152806,105170.0,105160.0,0.11600817]
[1749988489210,0.19152806,105170.0,105160.0,0.13385732]
[1749988489420,0.19152806,105170.0,105160.0,0.07617511]
[1749988490518,0.19152806,105170.0,105160.0,0.05832596]
[1749988490727,0.19152806,105170.0,105160.0,0.07617511]
[1749988491139,0.19152806,105170.0,105160.0,0.05832596]
[1749988491281,0.19152806,105170.0,105160.0,0.07617511]
[1749988491482,0.19152806,105170.0,105160.0,0.05832596]
[1749988491703,0.19152806,105170.0,105160.0,0.08685841]
[1749988491915,0.19152806,105170.0,105160.0,0.10470758]
[1749988492125,0.19152806,105170.0,105160.0,0.10470756]
[1749988492924,0.19152806,105170.0,105160.0,0.10470755]
[1749988493232,0.19152806,105170.0,105160.0,0.08685841]
[1749988493438,0.19152806,105170.0,105160.0,0.10470755]
[1749988493898,0.19152806,105170.0,105160.0,0.08685841]
[1749988494370,0.19152806,105170.0,105160.0,0.10473417]
[1749988495207,0.19152806,105170.0,105160.0,0.08688503]
[1749988495445,0.19152806,105170.0,105160.0,0.10473417]
[1749988496120,0.19152806,105170.0,105160.0,0.10472324]
[1749988496782,0.19152806,105170.0,105160.0,0.08688503]
[1749988496990,0.19152806,105170.0,105160.0,0.10472324]
[1749988497185,0.19152806,105170.0,105160.0,0.08688503]
[1749988497803,0.19152806,105170.0,105160.0,0.10472324]
[1749988498417,0.19152806,105170.0,105160.0,0.08688503]
[1749988499052,0.19152806,105170.0,105160.0,0.10472326]
[1749988499257,0.19152806,105170.0,105160.0,0.08688503]
[1749988499689,0.19152806,105170.0,105160.0,0.10472326]
[1749988500103,0.19152806,105170.0,105160.0,0.10472331]
[1749988500313,0.19152806,105170.0,105160.0,0.02583779]
[1749988500552,0.19152806,105170.0,105160.0,0.04367621]
[1749988500779,0.19152806,105170.0,105160.0,0.02583779]
[1749988501014,0.19152806,105170.0,105160.0,0.04367695]
[1749988501015,0.57290589,105170.0,105160.0,0.04367695]
[1749988501240,0.57290589,105170.0,105160.0,0.02583779]
[1749988501455,0.53152806,105170.0,105160.0,0.04367716]
[1749988501679,0.53152806,105170.0,105160.0,0.02583779]
[1749988502143,0.53152806,105170.0,105160.0,0.04372474]
[1749988502366,0.53152806,105170.0,105160.0,0.04372475]
[1749988502785,0.60690589,105170.0,105160.0,0.04372475]
[1749988503198,0.60690589,105170.0,105160.0,0.04372482]
[1749988503403,0.60690589,105170.0,105160.0,0.04372484]
[1749988503842,0.60690589,105170.0,105160.0,0.04373576]
[1749988504056,0.53152806,105170.0,105160.0,0.04373576]
[1749988504917,0.53152806,105170.0,105160.0,0.07433577]
[1749988505131,0.53152806,105170.0,105160.0,0.05648537]
[1749988505552,0.53152806,105170.0,105160.0,0.07433576]
[1749988505763,0.53152806,105170.0,105160.0,0.07433577]
[1749988505973,0.53152806,105170.0,105160.0,0.05648537]
[1749988506414,0.53152806,105170.0,105160.0,0.07433577]
[1749988506866,0.53152806,105170.0,105160.0,0.07433576]
[1749988507278,0.53152806,105170.0,105160.0,0.05648537]
[1749988507488,0.53152806,105170.0,105160.0,0.07433576]
[1749988507913,0.53152806,105170.0,105160.0,0.05648537]
[1749988508339,0.53152806,105170.0,105160.0,0.07433576]
[1749988510120,0.53152806,105170.0,105160.0,0.05648537]
[1749988510360,0.53152806,105170.0,105160.0,0.07433576]
[1749988511374,0.53152806,105170.0,105160.0,0.05648537]
[1749988511789,0.53152806,105170.0,105160.0,0.07433576]
[1749988512222,0.53152806,105170.0,105160.0,0.07431199]
[1749988513054,0.53152806,105170.0,105160.0,0.05648537]
[1749988513282,0.53152806,105170.0,105160.0,0.09213861]
[1749988513619,0.53152806,105170.0,105160.0,0.07431199]
[1749988513870,0.53152806,105170.0,105160.0,0.09213861]
[1749988514099,0.53152806,105170.0,105160.0,0.07431199]
[1749988514826,0.53152806,105170.0,105160.0,0.09213861]
[1749988515501,0.53152806,105170.0,105160.0,0.07431199]
[1749988516324,0.53152806,105170.0,105160.0,0.09213861]
[1749988517385,0.53152806,105170.0,105160.0,0.07431199]
[1749988517595,0.53152806,105170.0,105160.0,0.09213861]
[1749988519301,0.53152806,105170.0,105160.0,0.07431199]
[1749988519687,0.53152806,105170.0,105160.0,0.09213861]
[1749988520553,0.35010766,105170.0,105160.0,0.09213861]
[1749988520764,0.54027595,105170.0,105160.0,0.09213862]
[1749988520970,0.54027595,105170.0,105160.0,0.09213861]
[1749988521393,0.54027595,105170.0,105160.0,0.07431199]
[1749988521578,0.54027595,105170.0,105160.0,0.09213861]
[1749988521818,0.54027595,105170.0,105160.0,0.09214301]
[1749988522655,0.54027595,105170.0,105160.0,0.07431199]
[1749988522902,0.54027595,105170.0,105160.0,0.092143]
[1749988523116,0.54027595,105170.0,105160.0,0.07431199]
[1749988523537,0.54027595,105170.0,105160.0,0.092143]
[1749988524159,0.54027595,105170.0,105160.0,0.09214301]
[1749988525262,0.54027595,105170.0,105160.0,0.07431199]
[1749988525472,0.54027595,105170.0,105160.0,0.09216231]
[1749988525936,0.54027595,105170.0,105160.0,0.07431199]
[1749988526147,0.54027595,105170.0,105160.0,0.09216231]
[1749988528064,0.54027595,105170.0,105160.0,0.07431199]
[1749988528337,0.54027595,105170.0,105160.0,0.09216231]
[1749988528775,0.54027595,105170.0,105160.0,0.07431199]
[1749988528999,0.54027595,105170.0,105160.0,0.09216231]
[1749988529217,0.54027595,105170.0,105160.0,0.07431199]
[1749988529634,0.54027595,105170.0,105160.0,0.09216231]
[1749988530666,0.19016829,105170.0,105160.0,0.07431199]
[1749988530914,0.19016829,105170.0,105160.0,0.09216231]
[1749988531338,0.19016829,105170.0,105160.0,0.07431199]
[1749988531549,0.19016829,105170.0,105160.0,0.09216231]
[1749988531756,0.19016829,105170.0,105160.0,0.07431199]
[1749988531994,0.19016829,105170.0,105160.0,0.09216231]
[1749988533085,0.19016829,105170.0,105160.0,0.07431199]
[1749988533302,0.19016829,105170.0,105160.0,0.09216231]
[1749988534637,0.19016829,105170.0,105160.0,0.07431199]
[1749988534955,0.20762917,105170.0,105160.0,0.07431199]
[1749988535215,0.20762917,105170.0,105160.0,0.09216231]
[1749988535484,0.20762917,105170.0,105160.0,0.07431199]
[1749988535699,0.20762917,105170.0,105160.0,0.09216231]
[1749988535898,0.20762917,105170.0,105160.0,0.07431199]
[1749988536107,0.20762917,105170.0,105160.0,0.09216231]
[1749988536322,0.20762917,105170.0,105160.0,0.07431199]
[1749988536950,0.54762917,105170.0,105160.0,0.07431199]
[1749988537158,0.60286711,105170.0,105160.0,0.07431199]
[1749988538857,0.54762917,105170.0,105160.0,0.07431199]
[1749988539492,0.54762917,105170.0,105160.0,0.07426441]
[1749988542506,0.54335823,105170.0,105160.0,0.07426441]
[1749988543784,0.20335823,105170.0,105160.0,0.07460468]
[1749988544203,0.20095823,105170.0,105160.0,0.07460468]
[1749988548240,0.42272237,105170.0,105160.0,0.07426441]
[1749988549361,0.42272237,105170.0,105160.0,0.07471273]
[1749988577985,0.42272237,105170.0,105160.0,0.11542198]
[1749988578641,0.42272237,105170.0,105160.0,0.07471273]
[1749988582547,0.41778066,105170.0,105160.0,0.07471273]
[1749988593979,0.23922502,105170.0,105160.0,0.07471273]
[1749988594393,0.42939331,105170.0,105160.0,0.07471273]
[1749988604721,0.42444161,105170.0,105160.0,0.07471273]
[1749988604952,0.42444161,105170.0,105160.0,0.07472331]
[1749988605414,0.50133679,105170.0,105160.0,0.04412331]
[1749988606902,0.84133679,105170.0,105160.0,0.04412331]
[1749988611924,0.8408505,105170.0,105160.0,0.04412331]
[1749988612536,0.76395532,105170.0,105160.0,0.04412331]
[1749988615867,0.76395532,105170.0,105160.0,0.02127494]
[1749988616500,0.91827532,105170.0,105160.0,0.02127494]
[1749988617802,0.95057532,105170.0,105160.0,0.02127494]
[1749988618018,1.04681708,105170.0,105160.0,0.02127494]
[1749988618254,1.1429663,105170.0,105160.0,0.02127494]
[1749988618751,0.2164335,105140.0,105130.0,0.06662005]
[1749988618971,0.00951275,105120.0,105110.0,0.07926605]
[1749988619200,0.0095152,105090.0,105080.0,0.24455194]
[1749988619441,0.70642373,105090.0,105080.0,0.08213248]
[1749988619675,0.67194732,105090.0,105080.0,0.02503182]
[1749988619891,0.67194732,105090.0,105080.0,0.12127378]
[1749988619892,0.78285861,105090.0,105080.0,0.12127378]
[1749988620113,0.78285861,105090.0,105080.0,0.0316]
[1749988620352,0.94089861,105090.0,105080.0,0.04053232]
[1749988620598,0.78285861,105090.0,105080.0,0.04100791]
[1749988620816,0.60097861,105090.0,105080.0,0.0320757]
[1749988621028,0.6098847,105090.0,105080.0,0.0320757]
[1749988621307,0.60097861,105090.0,105080.0,0.0320757]
[1749988621525,0.62012909,105090.0,105080.0,0.0320757]
[1749988621740,0.45337399,105090.0,105080.0,0.04159225]
[1749988621958,0.26306129,105090.0,105080.0,0.34719747]
[1749988622176,0.26306138,105090.0,105080.0,0.34719747]
[1749988622387,0.26306138,105090.0,105080.0,0.34719756]
[1749988623024,0.23451488,105090.0,105080.0,0.35671348]
[1749988623235,0.24402971,105090.0,105080.0,0.35671348]
[1749988623447,0.25354491,105090.0,105080.0,0.35671348]
[1749988623655,0.26305983,105090.0,105080.0,0.35671348]
[1749988623867,0.26305983,105090.0,105080.0,0.33768146]
[1749988623868,0.23451488,105090.0,105080.0,0.33768146]
[1749988624079,0.25354509,105090.0,105080.0,0.35671357]
[1749988624300,0.25354509,105090.0,105080.0,0.36622976]
[1749988624508,0.25354509,105090.0,105080.0,0.36622913]
[1749988624715,0.25013883,105090.0,105080.0,0.41237076]
[1749988624923,0.25013883,105090.0,105080.0,0.42188668]
[1749988625171,0.44996718,105090.0,105080.0,0.4028552]
[1749988625384,0.25965412,105090.0,105080.0,0.41237121]
[1749988625588,0.25965412,105090.0,105080.0,0.42188713]
[1749988626011,0.2691695,105090.0,105080.0,0.42188713]
[1749988626462,0.25965403,105090.0,105080.0,0.42188713]
[1749988626673,0.23110872,105090.0,105080.0,0.42188713]
[1749988626876,0.24062373,105090.0,105080.0,0.42188713]
[1749988627503,0.24062364,105090.0,105080.0,0.36622958]
[1749988628358,0.23110872,105090.0,105080.0,0.36622958]
[1749988628570,0.24062364,105090.0,105080.0,0.36622958]
[1749988628777,0.23110872,105090.0,105080.0,0.36622958]
[1749988630723,0.23110872,105090.0,105080.0,0.38385083]
[1749988630959,0.23110872,105090.0,105080.0,0.36622958]
[1749988631173,0.23010872,105090.0,105080.0,0.38385075]
[1749988631629,0.23010872,105090.0,105080.0,0.38490849]
[1749988631854,0.23010872,105090.0,105080.0,0.36722958]
[1749988632073,0.23010872,105090.0,105080.0,0.38504919]
[1749988632492,0.23010872,105090.0,105080.0,0.36822958]
[1749988632725,0.23010872,105090.0,105080.0,0.38604918]
[1749988632931,0.23010872,105090.0,105080.0,0.36822958]
[1749988633136,0.23010872,105090.0,105080.0,0.38604918]
[1749988633750,0.23010872,105090.0,105080.0,0.38604921]
[1749988634605,0.23010872,105090.0,105080.0,0.38604923]
[1749988635022,0.23010872,105090.0,105080.0,0.3860493]
[1749988635240,0.23010872,105090.0,105080.0,0.38604928]
[1749988635447,0.23010872,105090.0,105080.0,0.36822958]
[1749988635666,0.23010872,105090.0,105080.0,0.38604919]
[1749988635886,0.23010872,105090.0,105080.0,0.40386878]
[1749988636104,0.23010872,105090.0,105080.0,0.51369906]
[1749988636904,0.23962355,105090.0,105080.0,0.51369906]
[1749988637411,0.23010872,105090.0,105080.0,0.4360275]
[1749988637658,0.23010872,105090.0,105080.0,0.43602754]
[1749988637917,0.23010872,105090.0,105080.0,0.43602722]
[1749988638183,0.23010872,105090.0,105080.0,0.41820791]
[1749988638935,0.23010872,105090.0,105080.0,0.38604919]
[1749988638936,0.23962355,105090.0,105080.0,0.38604919]
[1749988639196,0.23010872,105090.0,105080.0,0.40386878]
[1749988640011,0.23962364,105090.0,105080.0,0.40386878]
[1749988640679,0.23962364,105090.0,105080.0,0.60402881]
[1749988640768,0.23962364,105090.0,105080.0,0.58620919]
[1749988640993,0.23962364,105090.0,105080.0,0.60402882]
[1749988641931,0.23010872,105090.0,105080.0,0.60402882]
[1749988642183,0.23962355,105090.0,105080.0,0.38604919]
[1749988642439,0.23010872,105090.0,105080.0,0.58616919]
[1749988642668,0.23010872,105090.0,105080.0,0.60402882]
[1749988643628,0.23010872,105090.0,105080.0,0.58620919]
[1749988644078,0.23962364,105090.0,105080.0,0.58620919]
[1749988644299,0.23962364,105090.0,105080.0,0.60390882]
[1749988644548,0.23962364,105090.0,105080.0,0.38604919]
[1749988644776,0.24913884,105090.0,105080.0,0.54460919]
[1749988644999,0.24913874,105090.0,105080.0,0.56238913]
[1749988645227,0.25865394,105090.0,105080.0,0.56238923]
[1749988645668,0.23962364,105090.0,105080.0,0.56238923]
[1749988645895,0.23962364,105090.0,105080.0,0.54456919]
[1749988646115,0.24913874,105090.0,105080.0,0.54456919]
[1749988646337,0.24913874,105090.0,105080.0,0.56238923]
[1749988646556,0.24913874,105090.0,105080.0,0.54456919]
[1749988646785,0.24913874,105090.0,105080.0,0.56238923]
[1749988647051,0.25865403,105090.0,105080.0,0.54448919]
[1749988647285,0.24913874,105090.0,105080.0,0.54448919]
[1749988647510,0.24913874,105090.0,105080.0,0.56230923]
[1749988647742,0.24913874,105090.0,105080.0,0.54448919]
[1749988647982,0.24913874,105090.0,105080.0,0.56230923]
[1749988648907,0.24913874,105090.0,105080.0,0.54448919]
[1749988649126,0.24913874,105090.0,105080.0,0.56230923]
[1749988649786,0.24913874,105090.0,105080.0,0.54448919]
[1749988650214,0.24913874,105090.0,105080.0,0.56230923]
[1749988650433,0.24913874,105090.0,105080.0,0.54448919]
[1749988651089,0.24913874,105090.0,105080.0,0.56230923]
[1749988651725,0.24913874,105090.0,105080.0,0.54448919]
[1749988651942,0.24913874,105090.0,105080.0,0.38604919]
[1749988652198,0.25865394,105090.0,105080.0,0.54432919]
[1749988652713,0.25865394,105090.0,105080.0,0.56214923]
[1749988652959,0.46799812,105090.0,105080.0,0.54304623]
[1749988653178,0.49380971,105090.0,105080.0,0.13436657]
[1749988653396,0.50270524,105090.0,105080.0,0.13439516]
[1749988653614,0.50270524,105090.0,105080.0,0.11653707]
[1749988653839,0.50270488,105090.0,105080.0,0.13439545]
[1749988654050,0.50270486,105090.0,105080.0,0.13439552]
[1749988654262,0.67726486,105090.0,105080.0,0.11653707]
[1749988654474,0.66836971,105090.0,105080.0,0.13439552]
[1749988654699,0.67726486,105090.0,105080.0,0.11653707]
[1749988654911,0.66836971,105090.0,105080.0,0.11653707]
[1749988655133,0.67726487,105090.0,105080.0,0.11653707]
[1749988655598,0.67726492,105090.0,105080.0,0.13439552]
[1749988655833,0.66836971,105090.0,105080.0,0.11653707]
[1749988656120,0.5976129,105090.0,105080.0,0.33424315]
[1749988656342,0.5976129,105090.0,105080.0,0.33424295]
[1749988656564,0.58809743,105090.0,105080.0,0.33424296]
[1749988656792,0.5969926,105090.0,105080.0,0.3163847]
[1749988657020,0.60638808,105090.0,105080.0,0.34375857]
[1749988657246,0.60638819,105090.0,105080.0,0.32590107]
[1749988657470,0.59749281,105090.0,105080.0,0.32590107]
[1749988657695,0.60638821,105090.0,105080.0,0.34375866]
[1749988657922,0.60638819,105090.0,105080.0,0.34375852]
[1749988658151,0.60638816,105090.0,105080.0,0.34375874]
[1749988658389,0.67880117,105090.0,105080.0,0.13439459]
[1749988658621,0.67880117,105090.0,105080.0,0.13439518]
[1749988658859,0.67880117,105090.0,105080.0,0.11653707]
[1749988659088,0.68769657,105090.0,105080.0,0.11653707]
[1749988659311,0.67880117,105090.0,105080.0,0.14391183]
[1749988659534,0.67818115,105090.0,105080.0,0.14391157]
[1749988659755,0.67818118,105090.0,105080.0,0.32590125]
[1749988660035,0.43883259,105090.0,105080.0,0.35327566]
[1749988660257,0.5967527,105090.0,105080.0,0.35327581]
[1749988660478,0.59675265,105090.0,105080.0,0.33541762]
[1749988660700,0.58785743,105090.0,105080.0,0.35327559]
[1749988660923,0.59675268,105090.0,105080.0,0.3532756]
[1749988661154,0.58785743,105090.0,105080.0,0.33541762]
[1749988661384,0.58785743,105090.0,105080.0,0.35327955]
[1749988661385,0.59675487,105090.0,105080.0,0.35327955]
[1749988661603,0.59675483,105090.0,105080.0,0.35327955]
[1749988661834,0.58785743,105090.0,105080.0,0.35327955]
[1749988662058,0.58785743,105090.0,105080.0,0.35327942]
[1749988662340,0.58785743,105090.0,105080.0,0.33541762]
[1749988662623,0.58785743,105090.0,105080.0,0.35327996]
[1749988662846,0.58785743,105090.0,105080.0,0.33541762]
[1749988663064,0.66731271,105090.0,105080.0,0.33541762]
[1749988663290,0.66731271,105090.0,105080.0,0.3532799]
[1749988663519,0.66731271,105090.0,105080.0,0.35327988]
[1749988663972,0.59721281,105090.0,105080.0,0.37231244]
[1749988664193,0.59721281,105090.0,105080.0,0.37231229]
[1749988664416,0.59721281,105090.0,105080.0,0.35445009]
[1749988664639,0.59721281,105090.0,105080.0,0.3723119]
[1749988665086,0.59721281,105090.0,105080.0,0.37231171]
[1749988665306,0.59721281,105090.0,105080.0,0.37231168]
[1749988665949,0.59721281,105090.0,105080.0,0.37231141]
[1749988666161,0.59721281,105090.0,105080.0,0.40711147]
[1749988666402,0.67760363,105090.0,105080.0,0.37973354]
[1749988666633,0.67760363,105090.0,105080.0,0.39759548]
[1749988667058,0.67760363,105090.0,105080.0,0.39759559]
[1749988667495,0.67744363,105090.0,105080.0,0.39759555]
[1749988667982,0.67744363,105090.0,105080.0,0.3975956]
[1749988668202,0.67744363,105090.0,105080.0,0.39759581]
[1749988668424,0.67744363,105090.0,105080.0,0.40711167]
[1749988668638,0.67744363,105090.0,105080.0,0.38924964]
[1749988668852,0.67744363,105090.0,105080.0,0.40711172]
[1749988669068,0.67744363,105090.0,105080.0,0.4071118]
[1749988669302,0.67744363,105090.0,105080.0,0.40711185]
[1749988669731,0.67744363,105090.0,105080.0,0.40711179]
[1749988670173,0.67744363,105090.0,105080.0,0.40711161]
[1749988670395,0.67744363,105090.0,105080.0,0.40711156]
[1749988670627,0.67744363,105090.0,105080.0,0.40711172]
[1749988670860,0.67744363,105090.0,105080.0,0.39759574]
[1749988671102,0.67744363,105090.0,105080.0,0.40711181]
[1749988671349,0.67744363,105090.0,105080.0,0.38924964]
[1749988671592,0.67744363,105090.0,105080.0,0.40706682]
[1749988671810,0.67744363,105090.0,105080.0,0.40706674]
[1749988672022,0.67744363,105090.0,105080.0,0.38924964]
[1749988672239,0.67744363,105090.0,105080.0,0.40706673]
[1749988672666,0.67744363,105090.0,105080.0,0.407067]
[1749988672926,0.67744363,105090.0,105080.0,0.40706716]
[1749988673151,0.67744363,105090.0,105080.0,0.38803487]
[1749988673365,0.67744363,105090.0,105080.0,0.36837735]
[1749988673575,0.59705281,105090.0,105080.0,0.38619487]
[1749988674007,0.59705281,105090.0,105080.0,0.36837735]
[1749988674494,0.59705281,105090.0,105080.0,0.37789354]
[1749988674721,0.43945281,105090.0,105080.0,0.38740964]
[1749988674944,0.59677281,105090.0,105080.0,0.38740964]
[1749988675644,0.67711963,105090.0,105080.0,0.40522684]
[1749988675863,0.67711963,105090.0,105080.0,0.40522692]
[1749988676534,0.67707963,105090.0,105080.0,0.40522675]
[1749988676772,0.67707963,105090.0,105080.0,0.40522683]
[1749988677005,0.67707963,105090.0,105080.0,0.38740964]
[1749988677217,0.67707963,105090.0,105080.0,0.40522692]
[1749988677433,0.67707963,105090.0,105080.0,0.37789354]
[1749988677655,0.67707963,105090.0,105080.0,0.38619459]
[1749988677881,0.67707963,105090.0,105080.0,0.38619485]
[1749988678123,0.67707963,105090.0,105080.0,0.38619488]
[1749988678353,0.67707963,105090.0,105080.0,0.37789354]
[1749988678574,0.59673281,105090.0,105080.0,0.37789354]
[1749988679011,0.59673281,105090.0,105080.0,0.39571104]
[1749988679234,0.59673281,105090.0,105080.0,0.37789354]
[1749988679497,0.59673281,105090.0,105080.0,0.39571094]
[1749988679703,0.59673281,105090.0,105080.0,0.38619487]
[1749988679911,0.59673281,105090.0,105080.0,0.38619477]
[1749988680116,0.59673281,105090.0,105080.0,0.39571093]
[1749988680327,0.59673281,105090.0,105080.0,0.36716209]
[1749988680540,0.5990251,105090.0,105080.0,0.1325145]
[1749988680751,0.58950945,105090.0,105080.0,0.1325145]
[1749988680960,0.62320945,105090.0,105080.0,0.03763706]
[1749988681178,0.62320945,105090.0,105080.0,0.03763735]
[1749988681385,0.96320945,105090.0,105080.0,0.01981961]
[1749988681606,0.96320945,105090.0,105080.0,0.03763812]
[1749988682039,0.96320945,105090.0,105080.0,0.03763841]
[1749988682252,0.96320945,105090.0,105080.0,0.03663841]
[1749988682476,0.96420945,105090.0,105080.0,0.03663871]
[1749988682689,0.96420945,105090.0,105080.0,0.03668391]
[1749988682910,0.97310566,105090.0,105080.0,0.03668391]
[1749988683127,0.97310575,105090.0,105080.0,0.01781961]
[1749988683421,0.97310579,105090.0,105080.0,0.03568399]
[1749988683639,0.96620945,105090.0,105080.0,0.01781961]
[1749988683854,0.97510568,105090.0,105080.0,0.03568404]
[1749988684072,0.97510565,105090.0,105080.0,0.01781961]
[1749988684292,0.97510569,105090.0,105080.0,0.03568416]
[1749988684766,1.07134671,105090.0,105080.0,0.01781961]
[1749988684993,1.06245121,105090.0,105080.0,0.03568565]
[1749988685212,1.09975869,105090.0,105080.0,0.03568598]
[1749988685429,1.09087519,105090.0,105080.0,0.03568598]
[1749988685648,1.09977046,105090.0,105080.0,0.03568598]
[1749988685885,1.09087519,105090.0,105080.0,0.01781961]
[1749988686086,1.09977027,105090.0,105080.0,0.01781961]
[1749988686305,1.09977024,105090.0,105080.0,0.01781961]
[1749988686524,1.09087519,105090.0,105080.0,0.01781961]
[1749988686970,1.09087519,105090.0,105080.0,0.03568628]
[1749988687218,1.09087519,105090.0,105080.0,0.03568655]
[1749988687436,1.09977023,105090.0,105080.0,0.03568655]
[1749988687651,1.0997702,105090.0,105080.0,0.01781961]
[1749988687871,1.0997702,105090.0,105080.0,0.03568651]
[1749988688094,1.0997702,105090.0,105080.0,0.03568644]
[1749988688305,1.0997702,105090.0,105080.0,0.01781961]
[1749988688545,1.09977019,105090.0,105080.0,0.03568644]
[1749988688780,1.07134632,105090.0,105080.0,0.03568644]
[1749988689018,1.07134632,105090.0,105080.0,0.01781961]
[1749988689231,1.06245121,105090.0,105080.0,0.01781961]
[1749988689459,1.07134644,105090.0,105080.0,0.0356865]
[1749988689681,1.06245121,105090.0,105080.0,0.03568643]
[1749988689902,1.06245121,105090.0,105080.0,0.03568644]
[1749988690133,1.07134743,105090.0,105080.0,0.03568644]
[1749988690351,1.07134753,105090.0,105080.0,0.01781961]
[1749988690568,1.06245121,105090.0,105080.0,0.01781961]
[1749988690784,1.0713476,105090.0,105080.0,0.01781961]
[1749988690995,1.06245121,105090.0,105080.0,0.01781961]
[1749988691216,1.06245121,105090.0,105080.0,0.03568625]
[1749988691433,1.07134726,105090.0,105080.0,0.01781961]
[1749988691647,1.07134727,105090.0,105080.0,0.01781961]
[1749988692546,1.07134727,105090.0,105080.0,0.03568629]
[1749988692759,1.07134742,105090.0,105080.0,0.03568605]
[1749988692975,1.06245121,105090.0,105080.0,0.01781961]
[1749988693197,1.07134778,105090.0,105080.0,0.03568602]
[1749988693414,1.0713478,105090.0,105080.0,0.03568589]
[1749988693641,1.07134787,105090.0,105080.0,0.03568589]
[1749988694081,1.07134774,105090.0,105080.0,0.03568589]
[1749988694291,1.07134771,105090.0,105080.0,0.03568589]
[1749988694505,1.07134762,105090.0,105080.0,0.03568617]
[1749988694758,1.07134762,105090.0,105080.0,0.03568612]
[1749988695008,0.2420052,105090.0,105080.0,0.06898612]
[1749988695248,0.2420052,105090.0,105080.0,0.28786393]
[1749988695249,0.23310872,105090.0,105080.0,0.28786393]
[1749988695466,0.23310872,105090.0,105080.0,0.38410323]
[1749988695698,0.23310872,105090.0,105080.0,0.38410298]
[1749988695919,0.23310872,105090.0,105080.0,0.44757008]
[1749988696352,0.23310872,105090.0,105080.0,0.39471377]
[1749988696593,0.23310872,105090.0,105080.0,0.41257292]
[1749988696804,0.23010872,105090.0,105080.0,0.41257291]
[1749988697032,0.23010872,105090.0,105080.0,0.39571377]
[1749988697245,0.23010872,105090.0,105080.0,0.41457286]
[1749988697464,0.23010872,105090.0,105080.0,0.41451415]
[1749988697904,0.23010872,105090.0,105080.0,0.41451452]
[1749988698139,0.23010872,105090.0,105080.0,0.39671377]
[1749988698607,0.23010872,105090.0,105080.0,0.41451449]
[1749988699092,0.23010872,105090.0,105080.0,0.4145145]
[1749988699322,0.23010872,105090.0,105080.0,0.39671377]
[1749988701182,0.23010872,105090.0,105080.0,0.47978651]
[1749988701399,0.00889988,105110.0,105100.0,0.25233809]
[1749988701652,0.00889988,105110.0,105100.0,0.34857985]
[1749988702790,0.01289988,105110.0,105100.0,0.34957985]
[1749988703677,0.00889988,105110.0,105100.0,0.34857985]
[1749988703889,0.01089988,105110.0,105100.0,0.34857985]
[1749988704578,0.01389988,105110.0,105100.0,0.34857985]
[1749988705020,0.01089988,105110.0,105100.0,0.34857985]
[1749988706384,0.0214129,105110.0,105100.0,0.34857985]
[1749988706655,0.03092601,105110.0,105100.0,0.34857985]
[1749988707308,0.01189988,105110.0,105100.0,0.34857985]
[1749988714196,0.0214129,105110.0,105100.0,0.34857985]
[1749988714458,0.0214129,105110.0,105100.0,0.12974176]
[1749988714898,0.24023045,105110.0,105100.0,0.12974176]
[1749988715116,0.23071743,105110.0,105100.0,0.12974176]
[1749988715554,0.22120414,105110.0,105100.0,0.12974176]
[1749988731251,0.20930426,105110.0,105100.0,0.17221097]
[1749988733936,0.20930426,105110.0,105100.0,0.12974176]
[1749988741428,0.20930426,105110.0,105100.0,0.12918176]
[1749988760388,0.0285407,105110.0,105100.0,0.33850556]
[1749988760594,0.21881755,105110.0,105100.0,0.36706052]
[1749988760796,0.21881755,105110.0,105100.0,0.3765749]
[1749988761000,0.20930426,105110.0,105100.0,0.42945465]
[1749988761213,0.19979069,105110.0,105100.0,0.42945465]
[1749988761422,0.69700395,105120.0,105110.0,0.0156]
[1749988761643,0.68810396,105120.0,105110.0,0.0319]
[1749988761848,0.69700423,105120.0,105110.0,0.0319]
[1749988762078,0.69700424,105120.0,105110.0,0.0319]
[1749988762290,0.69700424,105120.0,105110.0,0.05019041]
[1749988762495,0.69700425,105120.0,105110.0,0.05019041]
[1749988762700,0.69700418,105120.0,105110.0,0.05019041]
[1749988763134,0.69700426,105120.0,105110.0,0.05019041]
[1749988763341,0.70100426,105120.0,105110.0,0.05119041]
[1749988763550,0.72196913,105120.0,105110.0,0.05119041]
[1749988763768,0.7219705,105120.0,105110.0,0.05119041]
[1749988763976,0.71306883,105120.0,105110.0,0.05119041]
[1749988764214,0.72497043,105120.0,105110.0,0.05119041]
[1749988764436,0.71606883,105120.0,105110.0,0.05119041]
[1749988764649,0.56074883,105120.0,105110.0,0.0329]
[1749988764860,0.72501043,105120.0,105110.0,0.0329]
[1749988765076,0.72501044,105120.0,105110.0,0.0329]
[1749988765508,0.71610883,105120.0,105110.0,0.0329]
[1749988765736,0.72501041,105120.0,105110.0,0.0329]
[1749988766167,0.72501035,105120.0,105110.0,0.0329]
[1749988767239,0.72501037,105120.0,105110.0,0.0329]
[1749988767444,0.71610883,105120.0,105110.0,0.0329]
[1749988767657,0.72501037,105120.0,105110.0,0.0329]
[1749988768123,0.72501042,105120.0,105110.0,0.07298599]
[1749988768538,0.71610883,105120.0,105110.0,0.07298599]
[1749988768744,0.72501053,105120.0,105110.0,0.07298599]
[1749988768958,0.71610883,105120.0,105110.0,0.07298599]
[1749988769167,0.72501052,105120.0,105110.0,0.07298599]
[1749988769827,0.71610883,105120.0,105110.0,0.07298599]
[1749988770030,0.72501048,105120.0,105110.0,0.07298599]
[1749988770242,0.72501048,105120.0,105110.0,0.0329]
[1749988770450,0.72501046,105120.0,105110.0,0.0329]
[1749988770659,0.71610883,105120.0,105110.0,0.0329]
[1749988771494,0.72501051,105120.0,105110.0,0.0329]
[1749988771697,0.72501048,105120.0,105110.0,0.0329]
[1749988772314,0.72501051,105120.0,105110.0,0.0329]
[1749988772734,0.72501048,105120.0,105110.0,0.0329]
[1749988773151,0.72501049,105120.0,105110.0,0.0329]
[1749988773355,0.71610883,105120.0,105110.0,0.0329]
[1749988774206,0.72501023,105120.0,105110.0,0.0329]
[1749988774416,0.72500938,105120.0,105110.0,0.0329]
[1749988774619,0.72500937,105120.0,105110.0,0.0329]
[1749988774824,0.71610883,105120.0,105110.0,0.0329]
[1749988775234,0.7250094,105120.0,105110.0,0.0329]
[1749988775438,0.71610883,105120.0,105110.0,0.0329]
[1749988775628,0.72500941,105120.0,105110.0,0.0329]
[1749988775889,0.71610883,105120.0,105110.0,0.0329]
[1749988776304,0.7250094,105120.0,105110.0,0.0329]
[1749988776512,0.71610883,105120.0,105110.0,0.0329]
[1749988776715,0.7250094,105120.0,105110.0,0.0329]
[1749988776919,0.71610883,105120.0,105110.0,0.0329]
[1749988777120,0.7250094,105120.0,105110.0,0.0329]
[1749988777324,0.71610883,105120.0,105110.0,0.0329]
[1749988777525,0.72500946,105120.0,105110.0,0.0329]
[1749988777939,0.71610883,105120.0,105110.0,0.0329]
[1749988778144,0.72500952,105120.0,105110.0,0.0329]